fUST/lending_fUST_20250819
["ID","MTS","AMOUNT","RATE_DAILY","PERIOD"]
[380213591,1755612659557,-480.0,0.00020273,2]
[380213592,1755612659565,-628.3254689,0.00020273,2]
[380213593,1755612659575,-480.0,0.00020273,2]
[380213594,1755612659585,-1296.86,0.00020273,2]
[380213595,1755612659594,-480.0,0.00020273,2]
[380213596,1755612659603,-480.0,0.00020273,2]
[380213597,1755612659613,-523.13,0.00020273,2]
[380213598,1755612659622,-480.0,0.00020273,2]
[380213599,1755612659632,-480.0,0.00020273,2]
[380213600,1755612659641,-480.0,0.00020273,2]
[380213601,1755612659651,-235.32832494,0.00020273,2]
[380213602,1755612659664,-244.67167506,0.00020273,2]
[380213603,1755612659673,-398.65159703,0.00020273,2]
[380213604,1755612659683,-480.0,0.00020273,2]
[380213605,1755612659692,-1382.2767284,0.00020273,2]
[380213606,1755612659704,-32.3532716,0.00020273,2]
[380213607,1755612659714,-480.0,0.00020273,2]
[380213608,1755612659723,-480.0,0.00020273,2]
[380213609,1755612659733,-480.0,0.00020273,2]
[380213610,1755612659742,-480.0,0.00020273,2]
[380213611,1755612659752,-480.0,0.00020273,2]
[380213612,1755612659762,-480.0,0.00020273,2]
[380213613,1755612659771,-550.04,0.00020273,2]
[380213614,1755612659781,-480.0,0.00020273,2]
[380213615,1755612659791,-480.0,0.00020273,2]
[380213616,1755612659800,-480.0,0.00020273,2]
[380213617,1755612659810,-480.0,0.00020273,2]
[380213618,1755612659819,-480.0,0.00020273,2]
[380213619,1755612659828,-480.0,0.00020273,2]
[380213620,1755612659837,-6496.46,0.00020273,2]
[380213621,1755612659847,-2041.41,0.00020273,2]
[380213622,1755612659856,-395.79171485,0.00020273,2]
[380213623,1755612659869,-223.36310544,0.00020273,2]
[380213624,1755612659879,-480.0,0.00020273,2]
[380213625,1755612659888,-103.28528171,0.00020273,2]
[380213626,1755612736541,500.0,0.00018586,2]
[380213627,1755612776289,1786.69849954,0.00018972,2]
[380213628,1755612783461,401.76952805,0.000189,2]
[380213629,1755612926807,414.482372,0.00013699,2]
[380213630,1755612928250,5149.83402917,0.00018978,2]
[380213631,1755612928274,10000.0,0.00018978,2]
[380213632,1755612928298,10000.0,0.00018978,2]
[380213633,1755612928321,10000.0,0.00018978,2]
[380213634,1755612928345,10000.0,0.00018978,2]
[380213635,1755612928368,10000.0,0.00018978,2]
[380213636,1755612928391,10000.0,0.00018978,2]
[380213637,1755612928415,10000.0,0.00018978,2]
[380213638,1755612928440,10000.0,0.00018978,2]
[380213639,1755612928463,10000.0,0.00018978,2]
[380213640,1755612928486,10000.0,0.00018978,2]
[380213641,1755612928510,10000.0,0.00018978,2]
[380213642,1755612928533,10000.0,0.00018978,2]
[380213643,1755612928556,10000.0,0.00018978,2]
[380213644,1755612928578,10000.0,0.00018978,2]
[380213645,1755612928601,10000.0,0.00018978,2]
[380213646,1755612928624,1605.86054089,0.00018978,2]
[380213647,1755612975104,500.0,0.00018586,2]
[380213648,1755612977635,178.3424571,0.00018436,2]
[380213649,1755613005060,1000.0,0.00018364,2]
[380213650,1755613060683,792.0,0.00028767,120]
[380213651,1755613084975,823.17750419,0.000189,2]
[380213653,1755613257745,2033.12129683,0.00018975,2]
[380213656,1755613386102,672.624735,0.00018101,2]
[380213657,1755613386606,548.78500279,0.000189,2]
[380213658,1755613416401,162.54304105,0.00018899,2]
[380213659,1755613507593,2475.54542215,0.00018101,2]
[380213660,1755613507618,7524.45457785,0.00018101,2]
[380213661,1755613517994,1778.9811347,0.00018976,2]
[380213663,1755613627116,-1200.0,0.00018998,2]
[380213664,1755613627140,-160.0,0.00018999,2]
[380213665,1755613627163,-154.0,0.00018999,2]
[380213666,1755613627187,-1200.0,0.00018999,2]
[380213667,1755613627212,-300.0,0.00018999,2]
[380213668,1755613627234,-29761.1,0.00019,2]
[380213669,1755613627258,-17883.87750926,0.00019076,2]
[380213670,1755613627288,-500.0,0.00019077,2]
[380213671,1755613627318,-500.0,0.00019077,2]
[380213672,1755613627346,-500.0,0.00019077,2]
[380213673,1755613627370,-165.36446672,0.00019077,2]
[380213674,1755613627396,-493.71967958,0.00019077,2]
[380213675,1755613627417,-13171.25026423,0.00019078,2]
[380213676,1755613627438,-648.74589378,0.00019078,2]
[380213677,1755613627460,-24358.47256177,0.00019078,2]
[380213678,1755613627481,-500.0,0.00019173,2]
[380213679,1755613627502,-500.0,0.00019173,2]
[380213680,1755613627522,-500.0,0.00019173,2]
[380213681,1755613627542,-269.95031563,0.00019173,2]
[380213682,1755613627569,-500.0,0.00019173,2]
[380213683,1755613627591,-500.0,0.00019173,2]
[380213684,1755613627613,-500.0,0.00019173,2]
[380213685,1755613627636,-500.0,0.00019173,2]
[380213686,1755613627657,-254.1170082,0.00019173,2]
[380213687,1755613627678,-500.0,0.00019173,2]
[380213688,1755613627699,-500.0,0.00019173,2]
[380213689,1755613627718,-500.0,0.00019173,2]
[380213690,1755613627739,-500.0,0.00019173,2]
[380213691,1755613627759,-500.0,0.00019173,2]
[380213692,1755613627780,-500.0,0.00019173,2]
[380213693,1755613627802,-500.0,0.00019173,2]
[380213694,1755613627828,-313.61126281,0.00019173,2]
[380213695,1755613637870,696.56428745,0.00018261,2]
[380213696,1755613637894,10000.0,0.00018261,2]
[380213697,1755613637916,10000.0,0.00018261,2]
[380213698,1755613637938,10000.0,0.00018261,2]
[380213699,1755613637962,10000.0,0.00018261,2]
[380213700,1755613637985,6686.06149715,0.00018261,2]
[380213701,1755613642013,656.18388923,0.00018603,2]
[380213702,1755613654090,-247.89810324,0.00019173,2]
[380213703,1755613654113,-500.0,0.00019177,2]
[380213704,1755613654135,-249.34732059,0.00019177,2]
[380213705,1755613654157,-175.08380057,0.00019178,2]
[380213707,1755613688062,365.85666853,0.000189,2]
[380213710,1755613750908,2291.89794509,0.00018978,2]
[380213711,1755613750931,10000.0,0.00018978,2]
[380213713,1755613765967,1525.63566762,0.0001819,2]
[380213714,1755613765990,10000.0,0.0001819,2]
[380213715,1755613766015,10000.0,0.0001819,2]
[380213716,1755613766039,10000.0,0.0001819,2]
[380213717,1755613766063,1325.41356008,0.0001819,2]
[380213747,1755613835810,-1200.0,0.00018977,2]
[380213749,1755613835820,-10292.0,0.00018978,2]
[380213751,1755613835832,-37416.10205491,0.00018978,2]
[380213753,1755613835844,-7967.89794511,0.00019078,2]
[380213754,1755613835857,-812.93556437,0.00019078,2]
[380213755,1755613835867,-2386.13014737,0.00019078,2]
[380213756,1755613835880,-5665.03567316,0.00019078,2]
[380213757,1755613835890,-500.0,0.00019173,2]
[380213758,1755613835909,-500.0,0.00019173,2]
[380213759,1755613835918,-500.0,0.00019173,2]
[380213760,1755613835927,-500.0,0.00019173,2]
[380213761,1755613835937,-304.91619943,0.00019178,2]
[380213762,1755613835947,-480.0,0.00019178,2]
[380213763,1755613835957,-480.0,0.00019178,2]
[380213764,1755613835969,-249.60951735,0.00019178,2]
[380213765,1755613835978,-480.0,0.00019178,2]
[380213766,1755613835988,-480.0,0.00019178,2]
[380213767,1755613835998,-480.0,0.00019178,2]
[380213768,1755613836007,-157.63815913,0.00019178,2]
[380213769,1755613836017,-480.0,0.00019178,2]
[380213770,1755613836026,-480.0,0.00019178,2]
[380213771,1755613836036,-480.0,0.00019178,2]
[380213773,1755613836045,-480.0,0.00019178,2]
[380213775,1755613836055,-480.0,0.00019178,2]
[380213777,1755613836064,-480.0,0.00019178,2]
[380213779,1755613836073,-480.0,0.00019178,2]
[380213781,1755613836083,-480.0,0.00019178,2]
[380213783,1755613836092,-440.0,0.00019178,2]
[380213785,1755613836103,-480.0,0.00019178,2]
[380213787,1755613836112,-152.74143824,0.00019178,2]
[380213793,1755613836163,-327.25856176,0.00019178,2]
[380213796,1755613836172,-500.0,0.00019178,2]
[380213797,1755613836182,-480.0,0.00019178,2]
[380213800,1755613836191,-480.0,0.00019178,2]
[380213802,1755613836201,-480.0,0.00019178,2]
[380213804,1755613836210,-480.0,0.00019178,2]
[380213806,1755613836223,-480.0,0.00019178,2]
[380213808,1755613836232,-480.0,0.00019178,2]
[380213810,1755613836242,-480.0,0.00019178,2]
[380213812,1755613836251,-480.0,0.00019178,2]
[380213814,1755613836260,-460.61306758,0.00019178,2]
[380213816,1755613836270,-480.0,0.00019178,2]
[380213818,1755613836279,-480.0,0.00019178,2]
[380213820,1755613836288,-480.0,0.00019178,2]
[380213822,1755613836298,-480.0,0.00019178,2]
[380213824,1755613836307,-460.46415229,0.00019178,2]
[380213825,1755613836316,-480.0,0.00019178,2]
[380213827,1755613836328,-480.0,0.00019178,2]
[380213829,1755613836342,-480.0,0.00019178,2]
[380213832,1755613836352,-321.37116679,0.00019178,2]
[380213834,1755613836361,-480.0,0.00019178,2]
[380213835,1755613836371,-480.0,0.00019178,2]
[380213836,1755613836380,-480.0,0.00019178,2]
[380213837,1755613836389,-480.0,0.00019178,2]
[380213838,1755613836399,-695.58,0.00019178,2]
[380213839,1755613836409,-480.0,0.00019178,2]
[380213840,1755613836418,-480.0,0.00019178,2]
[380213841,1755613836427,-441.7022495,0.00019178,2]
[380213842,1755613836436,-480.0,0.00019178,2]
[380213843,1755613836446,-480.0,0.00019178,2]
[380213844,1755613836456,-480.0,0.00019178,2]
[380213845,1755613836470,-480.0,0.00019178,2]
[380213846,1755613836479,-480.0,0.00019178,2]
[380213847,1755613836488,-480.0,0.00019178,2]
[380213849,1755613836497,-480.0,0.00019178,2]
[380213851,1755613836507,-480.0,0.00019178,2]
[380213853,1755613836517,-480.0,0.00019178,2]
[380213854,1755613836526,-480.0,0.00019178,2]
[380213856,1755613836535,-480.0,0.00019178,2]
[380213859,1755613836545,-480.0,0.00019178,2]
[380213860,1755613836555,-480.0,0.00019178,2]
[380213862,1755613836564,-480.0,0.00019178,2]
[380213864,1755613836574,-480.0,0.00019178,2]
[380213866,1755613836585,-480.0,0.00019178,2]
[380213868,1755613836594,-480.0,0.00019178,2]
[380213870,1755613836604,-480.0,0.00019178,2]
[380213872,1755613836613,-480.0,0.00019178,2]
[380213874,1755613836622,-440.0,0.00019178,2]
[380213876,1755613836632,-480.0,0.00019178,2]
[380213878,1755613836641,-480.57317437,0.00019178,2]
[380213880,1755613836651,-480.0,0.00019178,2]
[380213882,1755613836660,-480.0,0.00019178,2]
[380213883,1755613836669,-609.27418651,0.00019178,2]
[380213884,1755613836679,-480.0,0.00019178,2]
[380213885,1755613836689,-480.0,0.00019178,2]
[380213886,1755613836698,-480.0,0.00019178,2]
[380213888,1755613836708,-480.0,0.00019178,2]
[380213890,1755613836722,-480.0,0.00019178,2]
[380213892,1755613836731,-480.0,0.00019178,2]
[380213894,1755613836740,-480.0,0.00019178,2]
[380213896,1755613836750,-480.0,0.00019178,2]
[380213898,1755613836760,-480.0,0.00019178,2]
[380213900,1755613836769,-480.0,0.00019178,2]
[380213902,1755613836779,-480.0,0.00019178,2]
[380213904,1755613836788,-480.0,0.00019178,2]
[380213906,1755613836797,-480.0,0.00019178,2]
[380213908,1755613836806,-480.0,0.00019178,2]
[380213910,1755613836815,-480.0,0.00019178,2]
[380213912,1755613836825,-480.0,0.00019178,2]
[380213914,1755613836834,-460.58498551,0.00019178,2]
[380213916,1755613836844,-514.56,0.00019178,2]
[380213918,1755613836854,-480.0,0.00019178,2]
[380213920,1755613836864,-425.80773449,0.00019178,2]
[380213922,1755613836874,-460.0,0.00019178,2]
[380213923,1755613836884,-404.51659479,0.00019178,2]
[380213925,1755613836893,-421.95116986,0.00019178,2]
[380213927,1755613836903,-480.0,0.00019178,2]
[380213928,1755613836912,-2620.24,0.00019178,2]
[380213929,1755613836922,-480.0,0.00019178,2]
[380213930,1755613836931,-480.0,0.00019178,2]
[380213931,1755613836941,-480.0,0.00019178,2]
[380213932,1755613836950,-182.12435218,0.00019178,2]
[380213933,1755613836961,-480.0,0.00019178,2]
[380213934,1755613836972,-480.0,0.00019178,2]
[380213935,1755613836982,-402.49004105,0.00019178,2]
[380213936,1755613836991,-480.0,0.00019178,2]
[380213937,1755613837001,-441.16948472,0.00019178,2]
[380213938,1755613837010,-480.0,0.00019178,2]
[380213939,1755613837020,-480.0,0.00019178,2]
[380213940,1755613837030,-480.0,0.00019178,2]
[380213941,1755613837039,-480.0,0.00019178,2]
[380213942,1755613837049,-480.0,0.00019178,2]
[380213943,1755613837060,-480.0,0.00019178,2]
[380213944,1755613837070,-480.0,0.00019178,2]
[380213945,1755613837080,-480.0,0.00019178,2]
[380213946,1755613837090,-480.0,0.00019178,2]
[380213947,1755613837100,-480.0,0.00019178,2]
[380213948,1755613837109,-480.0,0.00019178,2]
[380213949,1755613837119,-480.0,0.00019178,2]
[380213950,1755613837130,-480.0,0.00019178,2]
[380213951,1755613837140,-480.0,0.00019178,2]
[380213952,1755613837149,-480.0,0.00019178,2]
[380213953,1755613837159,-480.0,0.00019178,2]
[380213954,1755613837168,-480.0,0.00019178,2]
[380213955,1755613837177,-480.0,0.00019178,2]
[380213956,1755613837187,-1891.29,0.00019178,2]
[380213957,1755613837196,-488.72897337,0.00019178,2]
[380213958,1755613837206,-480.0,0.00019178,2]
[380213959,1755613837222,-480.0,0.00019178,2]
[380213960,1755613837231,-241.91185123,0.00019178,2]
[380213961,1755613837241,-480.0,0.00019178,2]
[380213962,1755613837251,-480.0,0.00019178,2]
[380213963,1755613837260,-480.0,0.00019178,2]
[380213964,1755613837270,-480.0,0.00019178,2]
[380213965,1755613837280,-480.0,0.00019178,2]
[380213966,1755613837290,-547.4,0.00019178,2]
[380213967,1755613837300,-480.0,0.00019178,2]
[380213968,1755613837309,-469.11945033,0.00019178,2]
[380213969,1755613837319,-480.0,0.00019178,2]
[380213970,1755613837334,-480.0,0.00019178,2]
[380213971,1755613837343,-480.0,0.00019178,2]
[380213972,1755613837353,-480.0,0.00019178,2]
[380213973,1755613837362,-480.0,0.00019178,2]
[380213974,1755613837371,-480.0,0.00019178,2]
[380213975,1755613837380,-480.0,0.00019178,2]
[380213976,1755613837391,-480.0,0.00019178,2]
[380213977,1755613837401,-480.0,0.00019178,2]
[380213978,1755613837411,-480.0,0.00019178,2]
[380213979,1755613837420,-480.0,0.00019178,2]
[380213980,1755613837430,-533.31,0.00019178,2]
[380213981,1755613837440,-480.0,0.00019178,2]
[380213982,1755613837449,-423.58993945,0.00019178,2]
[380213983,1755613837458,-464.18800411,0.00019178,2]
[380213984,1755613837474,-480.0,0.00019178,2]
[380213985,1755613837483,-480.0,0.00019178,2]
[380213986,1755613837492,-480.0,0.00019178,2]
[380213987,1755613837501,-186.87415101,0.00019178,2]
[380213988,1755613837510,-480.0,0.00019178,2]
[380213989,1755613837520,-480.0,0.00019178,2]
[380213990,1755613837530,-480.0,0.00019178,2]
[380213991,1755613837539,-732.56,0.00019178,2]
[380213993,1755613837548,-480.0,0.00019178,2]
[380213994,1755613837557,-480.0,0.00019178,2]
[380213996,1755613837567,-480.0,0.00019178,2]
[380213998,1755613837576,-480.0,0.00019178,2]
[380213999,1755613837585,-480.0,0.00019178,2]
[380214000,1755613837595,-480.0,0.00019178,2]
[380214001,1755613837604,-480.0,0.00019178,2]
[380214002,1755613837614,-480.0,0.00019178,2]
[380214003,1755613837623,-461.68059674,0.00019178,2]
[380214005,1755613837632,-480.0,0.00019178,2]
[380214006,1755613837642,-480.0,0.00019178,2]
[380214007,1755613837651,-480.0,0.00019178,2]
[380214008,1755613837661,-553.21,0.00019178,2]
[380214010,1755613837671,-480.0,0.00019178,2]
[380214011,1755613837681,-404.02312493,0.00019178,2]
[380214012,1755613837690,-480.0,0.00019178,2]
[380214015,1755613837699,-480.0,0.00019178,2]
[380214017,1755613837708,-3836.92,0.00019178,2]
[380214019,1755613837722,-480.0,0.00019178,2]
[380214022,1755613837732,-480.0,0.00019178,2]
[380214024,1755613837741,-2557.95,0.00019178,2]
[380214025,1755613837750,-348.41554024,0.00019178,2]
[380214027,1755613837759,-461.23788087,0.00019178,2]
[380214030,1755613837769,-480.0,0.00019178,2]
[380214032,1755613837779,-480.0,0.00019178,2]
[380214034,1755613837788,-480.0,0.00019178,2]
[380214036,1755613837797,-462.75289204,0.00019178,2]
[380214038,1755613837806,-480.0,0.00019178,2]
[380214040,1755613837816,-480.0,0.00019178,2]
[380214042,1755613837825,-506.69,0.00019178,2]
[380214044,1755613837835,-480.0,0.00019178,2]
[380214046,1755613837844,-185.01763489,0.00019178,2]
[380214048,1755613837853,-480.0,0.00019178,2]
[380214049,1755613837862,-480.0,0.00019178,2]
[380214051,1755613837871,-480.0,0.00019178,2]
[380214053,1755613837880,-480.0,0.00019178,2]
[380214055,1755613837890,-480.0,0.00019178,2]
[380214057,1755613837899,-224.96501802,0.00019178,2]
[380214060,1755613837909,-480.0,0.00019178,2]
[380214061,1755613837918,-480.0,0.00019178,2]
[380214062,1755613837928,-480.0,0.00019178,2]
[380214063,1755613837937,-596.08281684,0.00019178,2]
[380214064,1755613837946,-480.0,0.00019178,2]
[380214065,1755613837955,-480.0,0.00019178,2]
[380214066,1755613837967,-480.0,0.00019178,2]
[380214067,1755613837977,-480.0,0.00019178,2]
[380214068,1755613837986,-480.0,0.00019178,2]
[380214069,1755613837995,-480.0,0.00019178,2]
[380214070,1755613838004,-480.0,0.00019178,2]
[380214071,1755613838013,-195.33537013,0.00019178,2]
[380214072,1755613838033,-284.66462987,0.00019178,2]
[380214073,1755613838043,-480.0,0.00019178,2]
[380214074,1755613838052,-381.73537013,0.00019178,2]
[380214075,1755613838204,-98.26462987,0.00019178,2]
[380214076,1755613838217,-480.0,0.00019178,2]
[380214077,1755613838227,-480.0,0.00019178,2]
[380214079,1755613838236,-480.0,0.00019178,2]
[380214080,1755613838245,-480.0,0.00019178,2]
[380214081,1755613838254,-480.0,0.00019178,2]
[380214082,1755613838263,-583.2,0.00019178,2]
[380214084,1755613838272,-480.0,0.00019178,2]
[380214086,1755613838282,-480.0,0.00019178,2]
[380214088,1755613838292,-500.0,0.00019178,2]
[380214090,1755613838302,-480.0,0.00019178,2]
[380214092,1755613838311,-500.0,0.00019178,2]
[380214094,1755613838322,-210.03537013,0.00019178,2]
[380214096,1755613838337,-289.96462987,0.00019178,2]
[380214098,1755613838346,-500.0,0.00019178,2]
[380214100,1755613838357,-500.0,0.00019178,2]
[380214102,1755613838367,-500.0,0.00019178,2]
[380214105,1755613838378,-500.0,0.00019178,2]
[380214106,1755613838387,-500.0,0.00019178,2]
[380214108,1755613838397,-500.0,0.00019178,2]
[380214110,1755613838406,-480.0,0.00019178,2]
[380214113,1755613838418,-500.0,0.00019178,2]
[380214114,1755613838428,-500.0,0.00019178,2]
[380214117,1755613838438,-500.0,0.00019178,2]
[380214119,1755613838447,-500.0,0.00019178,2]
[380214121,1755613838456,-480.0,0.00019178,2]
[380214122,1755613838470,-500.0,0.00019178,2]
[380214124,1755613838479,-500.0,0.00019178,2]
[380214125,1755613838488,-480.0,0.00019178,2]
[380214126,1755613838499,-500.0,0.00019178,2]
[380214128,1755613838509,-500.0,0.00019178,2]
[380214129,1755613838518,-480.0,0.00019178,2]
[380214131,1755613838528,-500.0,0.00019178,2]
[380214133,1755613838537,-289.6,0.00019178,2]
[380214135,1755613838547,-480.0,0.00019178,2]
[380214137,1755613838556,-480.0,0.00019178,2]
[380214138,1755613838566,-480.0,0.00019178,2]
[380214139,1755613838575,-480.0,0.00019178,2]
[380214140,1755613838585,-480.0,0.00019178,2]
[380214141,1755613838593,-480.0,0.00019178,2]
[380214144,1755613838747,-480.0,0.00019178,2]
[380214145,1755613838758,-423.67694576,0.00019178,2]
[380214146,1755613838768,-480.0,0.00019178,2]
[380214147,1755613838777,-480.0,0.00019178,2]
[380214148,1755613838787,-480.0,0.00019178,2]
[380214149,1755613838796,-480.0,0.00019178,2]
[380214150,1755613838805,-421.00382176,0.00019178,2]
[380214151,1755613838818,-58.99617824,0.00019178,2]
[380214152,1755613838827,-480.0,0.00019178,2]
[380214153,1755613838837,-480.0,0.00019178,2]
[380214154,1755613838847,-480.0,0.00019178,2]
[380214155,1755613838856,-480.0,0.00019178,2]
[380214156,1755613838866,-480.0,0.00019178,2]
[380214157,1755613838876,-480.0,0.00019178,2]
[380214158,1755613838885,-480.2319401,0.00019178,2]
[380214159,1755613838894,-606.82160585,0.00019178,2]
[380214160,1755613838903,-480.0,0.00019178,2]
[380214161,1755613838913,-319.02347275,0.00019178,2]
[380214162,1755613838922,-480.0,0.00019178,2]
[380214163,1755613838932,-480.0,0.00019178,2]
[380214164,1755613838941,-480.0,0.00019178,2]
[380214165,1755613838951,-1000.0,0.00019178,2]
[380214166,1755613838960,-480.0,0.00019178,2]
[380214167,1755613838972,-480.0,0.00019178,2]
[380214168,1755613838982,-480.0,0.00019178,2]
[380214169,1755613838991,-480.0,0.00019178,2]
[380214170,1755613839001,-365.19038225,0.00019178,2]
[380214171,1755613839011,-480.0,0.00019178,2]
[380214172,1755613839020,-465.41724905,0.00019178,2]
[380214173,1755613839029,-480.0,0.00019178,2]
[380214174,1755613839039,-480.0,0.00019178,2]
[380214175,1755613839048,-480.0,0.00019178,2]
[380214176,1755613839057,-480.0,0.00019178,2]
[380214177,1755613839067,-480.0,0.00019178,2]
[380214178,1755613839076,-480.0,0.00019178,2]
[380214179,1755613839086,-480.0,0.00019178,2]
[380214180,1755613839095,-480.0,0.00019178,2]
[380214181,1755613839104,-1286.2,0.00019178,2]
[380214182,1755613839113,-1476.73,0.00019178,2]
[380214183,1755613839123,-480.0,0.00019178,2]
[380214184,1755613839132,-614.35,0.00019178,2]
[380214185,1755613839142,-480.53698419,0.00019178,2]
[380214186,1755613839151,-480.0,0.00019178,2]
[380214187,1755613839161,-480.0,0.00019178,2]
[380214188,1755613839170,-480.0,0.00019178,2]
[380214189,1755613839179,-183.58348007,0.00019178,2]
[380214190,1755613839190,-1204.0,0.00019178,2]
[380214191,1755613839199,-584.32,0.00019178,2]
[380214192,1755613839209,-482.05012785,0.00019178,2]
[380214193,1755613839221,-460.0,0.00019178,2]
[380214194,1755613839231,-480.0,0.00019178,2]
[380214195,1755613839241,-480.0,0.00019178,2]
[380214196,1755613839251,-1958.67,0.00019178,2]
[380214197,1755613839260,-991.24,0.00019178,2]
[380214198,1755613839270,-480.0,0.00019178,2]
[380214199,1755613839279,-480.0,0.00019178,2]
[380214200,1755613839288,-480.0,0.00019178,2]
[380214201,1755613839298,-460.64300508,0.00019178,2]
[380214202,1755613839307,-469.17997011,0.00019178,2]
[380214203,1755613839316,-500.0,0.00019178,2]
[380214204,1755613839326,-500.0,0.00019178,2]
[380214205,1755613839336,-500.0,0.00019178,2]
[380214206,1755613839348,-324.52406751,0.00019178,2]
[380214207,1755613839358,-480.0,0.00019178,2]
[380214208,1755613839368,-6821.03,0.00019178,2]
[380214209,1755613839379,-480.0,0.00019178,2]
[380214210,1755613839389,-480.0,0.00019178,2]
[380214211,1755613839398,-480.0,0.00019178,2]
[380214212,1755613839408,-480.0,0.00019178,2]
[380214213,1755613839418,-480.0,0.00019178,2]
[380214214,1755613839427,-519.5,0.00019178,2]
[380214215,1755613839437,-480.0,0.00019178,2]
[380214216,1755613839445,-480.0,0.00019178,2]
[380214217,1755613839454,-480.0,0.00019178,2]
[380214218,1755613839465,-480.0,0.00019178,2]
[380214219,1755613839475,-480.0,0.00019178,2]
[380214220,1755613839484,-480.0,0.00019178,2]
[380214222,1755613839493,-480.0,0.00019178,2]
[380214223,1755613839503,-480.0,0.00019178,2]
[380214224,1755613839513,-480.0,0.00019178,2]
[380214225,1755613839522,-792.47,0.00019178,2]
[380214226,1755613839531,-480.0,0.00019178,2]
[380214227,1755613839541,-480.0,0.00019178,2]
[380214228,1755613839550,-759.45,0.00019178,2]
[380214229,1755613839559,-569.92274895,0.00019178,2]
[380214230,1755613839569,-528.46,0.00019178,2]
[380214231,1755613839579,-571.37,0.00019178,2]
[380214232,1755613839588,-377.6067015,0.00019178,2]
[380214233,1755613839597,-480.0,0.00019178,2]
[380214234,1755613839607,-371.21102599,0.00019178,2]
[380214235,1755613839616,-480.0,0.00019178,2]
[380214237,1755613839626,-480.0,0.00019178,2]
[380214239,1755613839635,-480.0,0.00019178,2]
[380214240,1755613839645,-480.0,0.00019178,2]
[380214241,1755613839655,-300.76865841,0.00019178,2]
[380214243,1755613839664,-480.0,0.00019178,2]
[380214245,1755613839673,-445.68456223,0.00019178,2]
[380214247,1755613839683,-2319.3,0.00019178,2]
[380214248,1755613839692,-480.0,0.00019178,2]
[380214249,1755613839701,-480.0,0.00019178,2]
[380214250,1755613839711,-480.0,0.00019178,2]
[380214251,1755613839722,-480.0,0.00019178,2]
[380214252,1755613839732,-480.0,0.00019178,2]
[380214253,1755613839741,-480.0,0.00019178,2]
[380214254,1755613839751,-480.0,0.00019178,2]
[380214255,1755613839761,-480.0,0.00019178,2]
[380214256,1755613839770,-480.0,0.00019178,2]
[380214257,1755613839779,-480.0,0.00019178,2]
[380214258,1755613839789,-480.0,0.00019178,2]
[380214259,1755613839798,-480.0,0.00019178,2]
[380214260,1755613839807,-9592.27,0.00019178,2]
[380214261,1755613839817,-480.0,0.00019178,2]
[380214262,1755613839826,-480.0,0.00019178,2]
[380214263,1755613839835,-547.95443346,0.00019178,2]
[380214264,1755613839844,-568.32508426,0.00019178,2]
[380214265,1755613839854,-480.0,0.00019178,2]
[380214266,1755613839863,-480.0,0.00019178,2]